bitfinex/quotes_BTCUSD_20241211
["timestamp","ask_amount","ask_price","bid_price","bid_amount"]
[1733889928434,0.29351074,97540.0,97539.0,0.0001649]
[1733889928601,0.20148216,97540.0,97539.0,0.0001649]
[1733889929839,0.0040859,97540.0,97539.0,0.0001649]
[1733889932300,0.0030859,97540.0,97539.0,0.0001649]
[1733889932780,8.59e-05,97540.0,97539.0,0.0001649]
[1733889933252,8.59e-05,97540.0,97539.0,0.0011649]
[1733889933519,8.59e-05,97540.0,97539.0,0.0001649]
[1733889933725,0.0020859,97540.0,97539.0,0.0001649]
[1733889934599,0.0030859,97540.0,97539.0,0.0001649]
[1733889940956,0.23242733,97540.0,97539.0,0.0001649]
[1733889942202,0.19111114,97540.0,97539.0,0.0001649]
[1733889943898,0.2020907,97540.0,97539.0,0.0001649]
[1733889945741,0.3520907,97540.0,97539.0,0.0001649]
[1733889945913,0.6750907,97540.0,97539.0,9e-07]
[1733889946882,0.87073897,97540.0,97539.0,9e-07]
[1733889947083,0.69673897,97540.0,97539.0,9e-07]
[1733889947286,0.1213907,97540.0,97539.0,9e-07]
[1733889947486,0.11041114,97540.0,97539.0,9e-07]
[1733889947722,0.11941114,97540.0,97539.0,0.0010009]
[1733889947983,0.11441114,97540.0,97539.0,0.0010009]
[1733889948233,0.11941114,97540.0,97539.0,0.0010009]
[1733889949061,0.11041114,97540.0,97539.0,9e-07]
[1733889949277,0.11941114,97540.0,97539.0,0.0010009]
[1733889950056,0.26941114,97540.0,97539.0,0.0010009]
[1733889950268,0.52090553,97540.0,97539.0,0.0010009]
[1733889950467,0.84088749,97540.0,97539.0,0.0010009]
[1733889950691,1.01557125,97540.0,97539.0,0.0010009]
[1733889950862,1.19959567,97540.0,97539.0,0.0010009]
[1733889951062,1.01557125,97540.0,97539.0,0.0010009]
[1733889951261,0.70287222,97540.0,97539.0,0.0010009]
[1733889952561,0.73939513,97540.0,97539.0,0.0010009]
[1733889952965,0.43939513,97540.0,97539.0,0.0010009]
[1733889953183,0.26941114,97540.0,97539.0,0.0010009]
[1733889953739,0.11941114,97540.0,97539.0,0.0010009]
[1733889953944,0.0140859,97540.0,97539.0,0.0010009]
[1733889954943,0.0090859,97540.0,97539.0,0.0010009]
[1733889955432,0.0120859,97540.0,97539.0,0.0010009]
[1733889955657,0.0030859,97540.0,97539.0,9e-07]
[1733889955918,0.0030859,97540.0,97539.0,0.0010009]
[1733889956175,0.0090859,97540.0,97539.0,0.0010009]
[1733889956494,0.0030859,97540.0,97539.0,9e-07]
[1733889956704,0.0020859,97540.0,97539.0,9e-07]
[1733889957383,0.0080859,97540.0,97539.0,0.0010009]
[1733889957614,0.0060859,97540.0,97539.0,0.0010009]
[1733889957850,0.0070859,97540.0,97539.0,0.0010009]
[1733889958393,0.0060859,97540.0,97539.0,0.0010009]
[1733889958626,0.0060859,97540.0,97539.0,0.0839009]
[1733889958888,0.0060859,97540.0,97539.0,0.1319009]
[1733889959488,8.59e-05,97540.0,97539.0,0.1309009]
[1733889959642,0.0010859,97540.0,97539.0,0.1309009]
[1733889960090,8.59e-05,97540.0,97539.0,0.1309009]
[1733889961530,8.59e-05,97540.0,97539.0,0.12071447]
[1733889961768,8.59e-05,97540.0,97539.0,0.12030847]
[1733889963470,8.59e-05,97540.0,97539.0,0.11722763]
[1733889963994,0.20414736,97556.0,97540.0,0.205044]
[1733889964250,0.20414736,97556.0,97542.0,0.205039]
[1733889965443,0.20502,97552.0,97541.0,0.10532524]
[1733889967914,0.205028,97548.0,97541.0,0.10532524]
[1733889968172,0.204976,97572.0,97541.0,0.10532524]
[1733889968173,0.31030124,97572.0,97541.0,0.10532524]
[1733889968408,0.205021,97551.0,97541.0,0.10532524]
[1733889968890,0.205013,97555.0,97541.0,0.10532524]
[1733889969130,0.205023,97550.0,97541.0,0.10532524]
[1733889969363,0.205023,97550.0,97541.0,0.10732524]
[1733889969635,0.205023,97550.0,97541.0,0.10532524]
[1733889970119,0.205023,97550.0,97541.0,0.09557489]
[1733889970364,0.205014,97554.0,97541.0,0.09557489]
[1733889970600,0.205014,97554.0,97541.0,0.09657489]
[1733889971045,0.205014,97554.0,97541.0,0.30261589]
[1733889971527,0.205014,97554.0,97541.0,0.30161589]
[1733889972311,0.205014,97554.0,97541.0,0.30061589]
[1733889972548,0.206014,97554.0,97541.0,0.30061589]
[1733889972810,0.206014,97554.0,97541.0,0.29576181]
[1733889973092,0.001,97554.0,97543.0,0.205037]
[1733889973388,0.001,97554.0,97542.0,0.023]
[1733889973389,0.001,97554.0,97547.0,0.205027]
[1733889973620,0.001,97554.0,97552.0,0.205017]
[1733889973857,0.001,97554.0,97553.0,0.0455]
[1733889975212,0.204996,97563.0,97553.0,0.0455]
[1733889975442,0.001,97554.0,97553.0,0.0455]
[1733889975643,0.204988,97567.0,97553.0,0.0495]
[1733889975886,0.204988,97567.0,97554.0,0.205014]
[1733889976110,0.20490651,97567.0,97554.0,0.205014]
[1733889976306,0.204943,97588.0,97557.0,0.205008]
[1733889976527,0.0826,97596.0,97560.0,0.0482]
[1733889976528,0.204955,97583.0,97560.0,0.0482]
[1733889976724,0.204955,97583.0,97570.0,0.0823]
[1733889977142,0.204955,97583.0,97571.0,0.204978]
[1733889977369,0.204955,97583.0,97571.0,0.18800993]
[1733889977576,0.204935,97592.0,97571.0,0.18800993]
[1733889977577,0.01103351,97601.0,97571.0,0.023]
[1733889977983,0.204963,97579.0,97571.0,0.023]
[1733889978836,0.204955,97583.0,97571.0,0.023]
[1733889978837,0.005,97583.0,97572.0,0.204976]
[1733889979045,0.20495,97585.0,97572.0,0.40717529]
[1733889979221,0.003,97579.0,97572.0,0.20219929]
[1733889979669,0.003,97579.0,97574.0,0.204972]
[1733889979883,0.004,97579.0,97575.0,0.023]
[1733889980094,0.001,97579.0,97576.0,0.204968]
[1733889980302,0.001,97579.0,97578.0,0.1053]
[1733889980505,0.001,97579.0,97578.0,0.310264]
[1733889980737,0.001,97579.0,97578.0,0.41558924]
[1733889980928,0.001,97579.0,97578.0,0.56074609]
[1733889981161,0.00063547,97590.0,97578.0,0.56074609]
[1733889981162,0.00063547,97590.0,97589.0,0.204941]
[1733889981362,0.00063547,97590.0,97589.0,0.276141]
[1733889982356,0.00063547,97590.0,97589.0,0.277141]
[1733889982686,0.00063547,97590.0,97589.0,0.38446624]
[1733889983213,0.00063547,97590.0,97589.0,0.53446624]
[1733889983831,0.00063547,97590.0,97589.0,0.61676624]
[1733889984074,0.00063547,97590.0,97589.0,0.61476624]
[1733889984777,0.00063547,97590.0,97589.0,0.62571156]
[1733889984989,0.00063547,97590.0,97589.0,0.62471156]
[1733889985194,0.00063547,97590.0,97589.0,0.62771156]
[1733889985413,0.00163547,97590.0,97589.0,0.63471156]
[1733889985618,0.00163547,97590.0,97589.0,0.63171156]
[1733889985825,0.00063547,97590.0,97589.0,0.62471156]
[1733889986035,0.00163547,97590.0,97589.0,0.63871156]
[1733889986452,0.00063547,97590.0,97589.0,0.61045156]
[1733889986663,0.00163547,97590.0,97589.0,0.61945156]
[1733889986865,0.00163547,97590.0,97589.0,0.62645156]
[1733889987091,0.00063547,97590.0,97589.0,0.61745156]
[1733889987284,0.00063547,97590.0,97589.0,0.15744532]
[1733889987495,0.00163547,97590.0,97589.0,0.26277056]
[1733889988492,0.00063547,97590.0,97589.0,0.25377056]
[1733889988701,0.00063547,97590.0,97589.0,0.41977056]
[1733889988882,0.00063547,97590.0,97589.0,0.42577056]
[1733889989511,0.00163547,97590.0,97589.0,0.42877056]
[1733889989862,0.00263547,97590.0,97589.0,0.44177056]
[1733889991833,0.00263547,97590.0,97589.0,0.29177056]
[1733889996591,0.00263547,97590.0,97589.0,0.05594532]
[1733889997244,0.00263547,97590.0,97589.0,0.045]
[1733889997730,0.00263547,97590.0,97589.0,0.022]
[1733889997958,0.08243547,97590.0,97589.0,0.022]
[1733889998431,0.08243547,97590.0,97580.0,0.0001714]
[1733889998432,0.08043547,97590.0,97580.0,0.0001714]
[1733889998646,0.08343547,97590.0,97580.0,0.0001714]
[1733889998887,0.204956,97582.0,97580.0,0.0001714]
[1733890000023,0.204946,97587.0,97580.0,0.0001714]
[1733890000271,0.204941,97589.0,97580.0,0.0001714]
[1733890000519,0.00063547,97590.0,97582.0,0.023]
[1733890000715,0.00063547,97590.0,97584.0,0.023]
[1733890000948,0.00063547,97590.0,97585.0,0.10532524]
[1733890001161,0.00063547,97590.0,97588.0,0.204943]
[1733890001380,0.00063547,97590.0,97589.0,0.12832524]
[1733890001846,0.00063547,97590.0,97589.0,0.35782524]
[1733890002089,0.00163547,97590.0,97589.0,0.35782524]
[1733890002567,0.00063547,97590.0,97589.0,0.35782524]
[1733890002771,0.00163547,97590.0,97589.0,0.36582524]
[1733890002963,0.00163547,97590.0,97589.0,0.35782524]
[1733890002964,0.00063547,97590.0,97589.0,0.35782524]
[1733890003396,0.00163547,97590.0,97589.0,0.36582524]
[1733890004587,0.00063547,97590.0,97589.0,0.36182524]
[1733890004829,0.00063547,97590.0,97589.0,0.37082524]
[1733890005088,0.00163547,97590.0,97589.0,0.36682524]
[1733890005321,0.00163547,97590.0,97589.0,0.37382524]
[1733890006073,0.00163547,97590.0,97589.0,0.38450721]
[1733890007082,0.00163547,97590.0,97589.0,0.02668197]
[1733890008309,0.00063547,97590.0,97589.0,0.03368197]
[1733890008544,0.00163547,97590.0,97589.0,0.04268197]
[1733890008813,0.00163547,97590.0,97589.0,0.03368197]
[1733890009077,0.00063547,97590.0,97589.0,0.03868197]
[1733890009310,0.00163547,97590.0,97589.0,0.04768197]
[1733890009553,0.00063547,97590.0,97589.0,0.03868197]
[1733890009787,0.00163547,97590.0,97589.0,0.04768197]
[1733890011033,0.00163547,97590.0,97589.0,0.04268197]
[1733890011034,0.05003547,97590.0,97589.0,0.04268197]
[1733890011266,0.05003547,97590.0,97589.0,0.04668197]
[1733890011746,0.04903547,97590.0,97589.0,0.03368197]
[1733890011977,0.05003547,97590.0,97589.0,0.04268197]
[1733890012238,0.05003547,97590.0,97589.0,0.03768197]
[1733890012732,0.05003547,97590.0,97589.0,0.03368197]
[1733890012978,0.05003547,97590.0,97589.0,0.03768197]
[1733890013186,0.05103547,97590.0,97589.0,0.04668197]
[1733890014361,0.05103547,97590.0,97589.0,0.04268197]
[1733890014599,0.05103547,97590.0,97589.0,0.04668197]
[1733890017866,0.05100329,97590.0,97589.0,0.04668197]
[1733890018095,0.05100329,97590.0,97589.0,0.02368197]
[1733890019405,0.04900329,97590.0,97589.0,0.01068197]
[1733890019612,0.04900329,97590.0,97589.0,0.01568197]
[1733890019818,0.04900329,97590.0,97589.0,0.005]
[1733890021292,0.04900329,97590.0,97589.0,0.008]
[1733890021721,0.04900329,97590.0,97589.0,0.005]
[1733890021929,0.204957,97581.0,97580.0,0.0001714]
[1733890023231,0.204957,97581.0,97580.0,0.0011714]
[1733890024721,0.204957,97581.0,97580.0,0.0031714]
[1733890025175,0.04900329,97590.0,97581.0,0.227957]
[1733890025379,0.04900329,97590.0,97581.0,0.023]
[1733890025611,0.04900329,97590.0,97583.0,0.023]
[1733890025836,0.04900329,97590.0,97581.0,0.023]
[1733890026478,0.04900329,97590.0,97580.0,0.0011714]
[1733890027411,0.05000329,97590.0,97580.0,0.0011714]
[1733890027830,0.04900329,97590.0,97580.0,0.0001714]
[1733890028039,0.05000329,97590.0,97580.0,0.0001714]
[1733890028243,0.05100329,97590.0,97580.0,0.0001714]
[1733890028649,0.05000329,97590.0,97580.0,0.0001714]
[1733890029061,0.05100329,97590.0,97580.0,0.0001714]
[1733890029474,0.04900329,97590.0,97580.0,0.0001714]
[1733890029887,0.04900329,97590.0,97580.0,0.0011714]
[1733890030308,0.09900329,97590.0,97580.0,0.0011714]
[1733890030735,0.30394329,97590.0,97580.0,0.0011714]
[1733890030946,0.30394329,97590.0,97581.0,0.023]
[1733890031158,0.204941,97589.0,97580.0,0.0001714]
[1733890031571,0.204941,97589.0,97581.0,0.023]
[1733890031992,0.204941,97589.0,97581.0,0.027]
[1733890032406,0.204941,97589.0,97581.0,0.023]
[1733890032613,0.204941,97589.0,97580.0,0.0041714]
[1733890032835,0.204941,97589.0,97581.0,0.023]
[1733890034539,0.204941,97589.0,97582.0,0.023]
[1733890035278,0.204941,97589.0,97580.0,0.0001714]
[1733890035506,0.204941,97589.0,97582.0,0.023]
[1733890035999,0.204941,97589.0,97580.0,0.0001714]
[1733890036225,0.204941,97589.0,97583.0,0.023]
[1733890037748,0.204941,97589.0,97580.0,0.0001714]
[1733890037929,0.204941,97589.0,97583.0,0.023]
[1733890038160,0.204941,97589.0,97581.0,0.023]
[1733890038365,0.204941,97589.0,97580.0,0.0001714]
[1733890038570,0.204941,97589.0,97584.0,0.023]
[1733890039403,0.204941,97589.0,97580.0,0.0001714]
[1733890039601,0.204941,97589.0,97581.0,0.023]
[1733890041361,0.204941,97589.0,97585.0,0.023]
[1733890041581,0.204941,97589.0,97584.0,0.002]
[1733890041582,0.204945,97587.0,97584.0,0.002]
[1733890041789,0.204947,97586.0,97584.0,0.005]
[1733890042294,0.254445,97587.0,97581.0,0.002]
[1733890042295,0.204952,97584.0,97581.0,0.002]
[1733890042501,0.409904,97584.0,97581.0,0.005]
[1733890043146,0.409904,97584.0,97580.0,0.0001714]
[1733890043147,0.287454,97583.0,97580.0,0.0001714]
[1733890043369,0.492408,97583.0,97580.0,0.0001714]
[1733890044446,0.0825,97589.0,97581.0,0.001]
[1733890044662,0.204942,97589.0,97581.0,0.001]
[1733890044879,0.204942,97589.0,97580.0,0.0001714]
[1733890044880,0.409884,97589.0,97580.0,0.0001714]
[1733890045097,0.003,97584.0,97580.0,0.0001714]
[1733890045311,0.204953,97583.0,97580.0,0.0001714]
[1733890045527,0.409907,97583.0,97580.0,0.01111942]
[1733890045989,0.409907,97583.0,97580.0,0.0001714]
[1733890046403,0.204957,97581.0,97580.0,0.0001714]
[1733890049127,0.205957,97581.0,97580.0,0.0001714]
[1733890051449,0.207957,97581.0,97580.0,0.0001714]
[1733890053455,0.31328224,97581.0,97580.0,0.0001714]
[1733890054594,0.36118224,97581.0,97580.0,0.0001714]
[1733890054821,0.51099576,97581.0,97580.0,0.0001714]
[1733890055446,0.52154462,97581.0,97580.0,0.0001714]
[1733890055647,0.4489311,97581.0,97580.0,0.0001714]
[1733890056701,0.4469311,97581.0,97580.0,0.0001714]
[1733890057112,0.4529311,97581.0,97580.0,0.0001714]
[1733890057568,0.4509311,97581.0,97580.0,0.0001714]
[1733890057782,0.205021,97551.0,97544.0,0.023]
[1733890058003,0.205029,97547.0,97543.0,0.023]
[1733890058421,0.410059,97547.0,97543.0,0.03350114]
[1733890059054,0.205024,97550.0,97543.0,0.03350114]
[1733890059055,0.205022,97551.0,97545.0,0.023]
[1733890059843,0.410044,97551.0,97545.0,0.023]
[1733890060209,0.001,97547.0,97544.0,0.023]
[1733890060405,0.410044,97551.0,97544.0,0.023]
[1733890060812,0.205025,97549.0,97546.0,0.023]
[1733890061278,0.41005,97549.0,97544.0,0.023]
[1733890061488,0.205031,97546.0,97544.0,0.037]
[1733890061694,0.205031,97546.0,97544.0,0.028]
[1733890061912,0.205031,97546.0,97543.0,0.023]
[1733890061913,0.205033,97545.0,97543.0,0.023]
[1733890062124,0.205031,97546.0,97540.0,0.023]
[1733890062333,0.41007,97544.0,97540.0,0.023]
[1733890062754,0.41007,97544.0,97539.0,0.00419399]
[1733890063395,0.20543,97550.0,97539.0,0.00419399]
[1733890063605,0.20543,97550.0,97540.0,0.079]
[1733890064238,0.20543,97550.0,97541.0,0.023]
[1733890064665,0.205033,97545.0,97544.0,0.023]
[1733890064916,0.205033,97545.0,97544.0,0.00957138]
[1733890065132,0.410067,97545.0,97540.0,0.079]
[1733890066183,0.205033,97545.0,97540.0,0.079]
[1733890066395,0.205044,97540.0,97539.0,0.00419399]
[1733890067229,0.205044,97540.0,97539.0,0.02719399]
[1733890067648,0.205044,97540.0,97539.0,0.00419399]
[1733890068066,0.205044,97540.0,97539.0,0.00519399]
[1733890068275,0.2255758,97540.0,97539.0,0.00519399]
[1733890068484,0.205044,97540.0,97539.0,0.00419399]
[1733890069328,0.205044,97540.0,97539.0,0.00719399]
[1733890069533,0.205044,97540.0,97539.0,0.00419399]
[1733890072985,0.282544,97540.0,97539.0,0.00419399]
[1733890073503,0.44159754,97540.0,97539.0,0.00419399]
[1733890073725,0.38786924,97540.0,97539.0,0.00419399]
[1733890075064,0.38986924,97540.0,97539.0,0.00419399]
[1733890075569,0.38786924,97540.0,97539.0,0.00419399]
[1733890076047,0.39486924,97540.0,97539.0,0.00419399]
[1733890076220,0.38986924,97540.0,97539.0,0.00419399]
[1733890076511,0.39286924,97540.0,97539.0,0.00419399]
[1733890077633,0.63763006,97540.0,97539.0,0.00419399]
[1733890078868,0.64833248,97540.0,97539.0,0.00419399]
[1733890079509,0.85357166,97540.0,97539.0,9.9e-07]
[1733890080530,0.85157166,97540.0,97539.0,9.9e-07]
[1733890080738,0.84857166,97540.0,97539.0,9.9e-07]
[1733890080945,0.85257166,97540.0,97539.0,9.9e-07]
[1733890081144,0.85957166,97540.0,97539.0,0.00100099]
[1733890083365,0.55957166,97540.0,97539.0,0.00100099]
[1733890089915,0.56953166,97540.0,97539.0,0.00100099]
[1733890090550,0.60575508,97540.0,97539.0,0.00100099]
[1733890090963,0.56953166,97540.0,97539.0,0.00100099]
[1733890092924,0.71953166,97540.0,97539.0,0.00100099]
[1733890093333,0.86953166,97540.0,97539.0,0.00100099]
[1733890095029,0.86961746,97540.0,97539.0,0.00100099]
[1733890095257,0.75155523,97540.0,97539.0,0.00100099]
[1733890095465,0.90155523,97540.0,97539.0,0.00100099]
[1733890096733,1.00665852,97540.0,97539.0,0.00100099]
[1733890099122,0.97472075,97540.0,97539.0,0.00100099]
[1733890099551,1.00668321,97540.0,97539.0,0.00100099]
[1733890099755,0.97472075,97540.0,97539.0,0.00100099]
[1733890100172,1.00668343,97540.0,97539.0,0.00100099]
[1733890100379,0.97472075,97540.0,97539.0,0.00100099]
[1733890100606,1.00669137,97540.0,97539.0,0.00100099]
[1733890102077,1.00669137,97540.0,97539.0,9.9e-07]
[1733890103404,1.31703858,97540.0,97539.0,9.9e-07]
[1733890103857,1.50071765,97540.0,97539.0,9.9e-07]
[1733890104300,1.39561436,97540.0,97539.0,9.9e-07]
[1733890104483,1.21193529,97540.0,97539.0,9.9e-07]
[1733890105368,0.15,97528.0,97507.0,0.02732919]
[1733890105574,0.205111,97508.0,97507.0,0.02732919]
[1733890106407,0.31043624,97508.0,97507.0,0.02732919]
[1733890106623,0.31043624,97508.0,97499.0,0.0827]
[1733890106624,0.205126,97501.0,97499.0,0.0827]
[1733890107053,0.205126,97501.0,97500.0,0.00022785]
[1733890107883,0.206126,97501.0,97500.0,0.00022785]
[1733890109052,0.206126,97501.0,97500.0,0.00422785]
[1733890109252,0.205126,97501.0,97500.0,0.00422785]
[1733890109487,0.205126,97501.0,97500.0,0.00022785]
[1733890109909,0.205126,97501.0,97500.0,0.00122785]
[1733890110796,0.31045124,97501.0,97500.0,0.00122785]
[1733890112119,0.46045124,97501.0,97500.0,0.00022785]
[1733890112385,0.6424342,97501.0,97500.0,0.00022785]
[1733890112591,0.64342084,97501.0,97500.0,0.00022785]
[1733890112906,0.74852413,97501.0,97500.0,8.5e-07]
[1733890113123,1.28985978,97501.0,97500.0,8.5e-07]
[1733890113333,1.29287432,97501.0,97500.0,8.5e-07]
[1733890113539,1.47085011,97501.0,97500.0,8.5e-07]
[1733890113741,1.20450183,97501.0,97500.0,8.5e-07]
[1733890113959,0.98152413,97501.0,97500.0,8.5e-07]
[1733890114168,0.87642084,97501.0,97500.0,8.5e-07]
[1733890114379,0.87942084,97501.0,97500.0,8.5e-07]
[1733890114508,0.84745124,97501.0,97500.0,8.5e-07]
[1733890116625,0.9713546,97501.0,97500.0,8.5e-07]
[1733890116838,1.29389441,97501.0,97500.0,8.5e-07]
[1733890117056,1.52387211,97501.0,97500.0,8.5e-07]
[1733890117258,1.29389441,97501.0,97500.0,8.5e-07]
[1733890117465,0.3,97491.0,97490.0,4.5e-07]
[1733890117670,0.83747224,97491.0,97490.0,4.5e-07]
[1733890118130,0.94257553,97491.0,97490.0,4.5e-07]
[1733890118756,0.97194633,97491.0,97490.0,4.5e-07]
[1733890120231,0.655168,97481.0,97480.0,5e-08]
[1733890120433,0.78986404,97481.0,97480.0,5e-08]
[1733890120858,0.87066404,97481.0,97480.0,5e-08]
[1733890121075,0.95350155,97481.0,97480.0,5e-08]
[1733890121508,0.97510054,97481.0,97480.0,5e-08]
[1733890121960,0.98410054,97481.0,97480.0,5e-08]
[1733890122175,0.93313075,97481.0,97480.0,5e-08]
[1733890122387,0.92513075,97481.0,97480.0,5e-08]
[1733890122587,0.92413075,97481.0,97480.0,5e-08]
[1733890123016,0.92913075,97481.0,97480.0,5e-08]
[1733890123228,0.93813075,97481.0,97480.0,5e-08]
[1733890123437,0.95138564,97481.0,97480.0,5e-08]
[1733890123642,0.95138564,97481.0,97452.0,0.0803]
[1733890123643,0.505189,97471.0,97470.0,6.5e-07]
[1733890123860,0.84131424,97471.0,97470.0,6.8e-07]
[1733890124342,0.87068504,97471.0,97470.0,6.8e-07]
[1733890124552,0.90251802,97471.0,97470.0,6.8e-07]
[1733890124777,1.05752131,97471.0,97470.0,6.8e-07]
[1733890124985,1.02568833,97471.0,97470.0,6.8e-07]
[1733890125417,1.03468833,97471.0,97470.0,6.8e-07]
[1733890125703,1.05750764,97471.0,97470.0,6.8e-07]
[1733890125904,1.03911512,97471.0,97470.0,6.8e-07]
[1733890126111,1.08493403,97471.0,97470.0,6.8e-07]
[1733890126324,1.05311512,97471.0,97470.0,6.8e-07]
[1733890126562,1.03911512,97471.0,97470.0,6.8e-07]
[1733890126792,1.04811512,97471.0,97470.0,6.8e-07]
[1733890126995,1.05411512,97471.0,97470.0,6.8e-07]
[1733890128239,0.50521,97461.0,97440.0,0.0001716]
[1733890128452,0.93934764,97461.0,97460.0,4e-07]
[1733890128648,0.86830604,97461.0,97460.0,4e-07]
[1733890129523,0.88230604,97461.0,97460.0,4e-07]
[1733890129755,0.87330604,97461.0,97460.0,4e-07]
[1733890130011,0.505229,97452.0,97440.0,0.0001716]
[1733890130224,0.78992504,97452.0,97440.0,0.0001716]
[1733890131090,0.76055424,97452.0,97440.0,0.0001716]
[1733890131705,0.86513216,97452.0,97440.0,0.0001716]
[1733890132113,0.86813216,97452.0,97440.0,0.0001716]
[1733890132931,0.88144462,97452.0,97440.0,0.0001716]
[1733890133218,0.3,97451.0,97450.0,6e-07]
[1733890133425,0.58469604,97451.0,97450.0,6e-07]
[1733890133658,0.67605892,97451.0,97450.0,6e-07]
[1733890134012,0.75445892,97451.0,97450.0,6e-07]
[1733890135429,0.66309604,97451.0,97450.0,6e-07]
[1733890135631,0.59369604,97451.0,97450.0,6e-07]
[1733890136039,0.59869604,97451.0,97450.0,6e-07]
[1733890136246,0.58969604,97451.0,97450.0,6e-07]
[1733890136696,0.58469604,97451.0,97450.0,6e-07]
[1733890136907,0.69479933,97451.0,97450.0,6e-07]
[1733890137327,0.59382853,97451.0,97450.0,6e-07]
[1733890137531,0.45,97432.0,97431.0,0.0001886]
[1733890137734,0.55532524,97432.0,97431.0,0.0001886]
[1733890137940,0.84824956,97432.0,97431.0,0.0001886]
[1733890138638,0.87668189,97432.0,97431.0,0.0001886]
[1733890138844,0.82114937,97432.0,97431.0,0.0001886]
[1733890139051,0.31959624,97432.0,97431.0,0.0001886]
[1733890139280,0.33287661,97432.0,97431.0,0.0001886]
[1733890140342,0.26932524,97432.0,97431.0,0.0001886]
[1733890140558,0.26932524,97432.0,97431.0,0.0493886]
[1733890141870,0.26032524,97432.0,97431.0,0.0493886]
[1733890142100,0.26432524,97432.0,97431.0,0.0493886]
[1733890142517,0.25932524,97432.0,97431.0,0.0493886]
[1733890142934,0.26332524,97432.0,97431.0,0.0493886]
[1733890143383,0.25932524,97432.0,97431.0,0.0493886]
[1733890143801,0.11032524,97432.0,97431.0,0.0493886]
[1733890144010,0.005,97432.0,97431.0,0.1254886]
[1733890144845,0.001,97432.0,97431.0,0.1254886]
[1733890145288,0.006,97432.0,97431.0,0.1254886]
[1733890145498,0.001,97432.0,97431.0,0.1254886]
[1733890145681,0.20527,97433.0,97431.0,0.1254886]
[1733890145908,0.004,97432.0,97431.0,0.1254886]
[1733890146322,0.001,97432.0,97431.0,0.1254886]
[1733890146527,0.20527,97433.0,97431.0,0.1254886]
[1733890147191,0.205262,97436.0,97431.0,0.1254886]
[1733890147398,0.10532524,97435.0,97431.0,0.1254886]
[1733890147602,0.003,97432.0,97431.0,0.1254886]
[1733890148012,0.205267,97434.0,97431.0,0.1254886]
[1733890148222,0.003,97433.0,97431.0,0.1254886]
[1733890148646,0.205267,97434.0,97431.0,0.1254886]
[1733890149059,0.003,97432.0,97431.0,0.1254886]
[1733890149269,0.205267,97434.0,97431.0,0.1254886]
[1733890149472,0.205271,97432.0,97431.0,0.1254886]
[1733890151842,0.208271,97432.0,97431.0,0.1254886]
[1733890162347,0.31359624,97432.0,97431.0,0.0001886]
[1733890162776,0.34563042,97432.0,97431.0,0.0001886]
[1733890165245,0.64563042,97432.0,97431.0,0.0001886]
[1733890165482,0.64563042,97432.0,97411.0,0.0004]
[1733890165483,0.3,97431.0,97430.0,2e-07]
[1733890165709,1.02087415,97431.0,97430.0,2e-07]
[1733890166033,1.02087415,97431.0,97411.0,0.0004]
[1733890166034,0.355294,97421.0,97420.0,6e-07]
[1733890166235,0.94896815,97421.0,97420.0,6e-07]
[1733890166436,1.09896815,97421.0,97420.0,6e-07]
[1733890166935,1.32943015,97421.0,97420.0,8.8e-07]
[1733890167186,1.09896815,97421.0,97420.0,8.8e-07]
[1733890167647,1.32943015,97421.0,97420.0,8.8e-07]
[1733890167871,1.21139941,97421.0,97420.0,8.8e-07]
[1733890168089,1.21139941,97421.0,97411.0,0.0004]
[1733890168090,0.505313,97412.0,97411.0,8.8e-07]
[1733890168323,0.64267242,97412.0,97411.0,0.00016592]
[1733890168584,0.78088492,97412.0,97411.0,0.00016592]
[1733890169521,0.64267242,97412.0,97411.0,0.00016592]
[1733890170530,0.3499,97411.0,97410.0,3.2e-07]
[1733890170787,1.02187919,97411.0,97410.0,3.2e-07]
[1733890173121,0.655336,97401.0,97400.0,3.49084512]
[1733890173374,0.76066124,97401.0,97400.0,3.38817512]
[1733890174984,0.76966124,97401.0,97400.0,3.38817512]
[1733890175248,0.76066124,97401.0,97400.0,3.38817512]
[1733890175474,0.76966124,97401.0,97400.0,3.38817512]
[1733890175721,0.78209603,97401.0,97400.0,3.38817512]
[1733890175941,0.85999603,97401.0,97400.0,3.28550512]
[1733890176176,0.85999603,97401.0,97400.0,3.22390312]
[1733890176414,0.86399603,97401.0,97400.0,3.18283512]
[1733890176883,0.85099603,97401.0,97400.0,3.18283512]
[1733890177151,1.39204615,97401.0,97400.0,3.01360914]
[1733890177395,2.41713097,97401.0,97400.0,2.99668944]
[1733890177647,2.1870046,97401.0,97400.0,2.99668944]
[1733890177902,2.09345231,97401.0,97400.0,2.96544944]
[1733890178135,2.11095231,97401.0,97400.0,2.61115441]
[1733890178358,2.12395231,97401.0,97400.0,2.61115441]
[1733890178612,2.2200556,97401.0,97400.0,2.61115441]
[1733890178838,2.2160556,97401.0,97400.0,2.61115441]
[1733890179106,2.2160556,97401.0,97400.0,2.24752919]
[1733890179365,2.2250556,97401.0,97400.0,2.24752919]
[1733890179617,2.25130152,97401.0,97400.0,2.24252919]
[1733890179834,2.24230152,97401.0,97400.0,1.72851866]
[1733890180108,2.17422517,97401.0,97400.0,1.70798466]
[1733890180348,1.94480369,97401.0,97400.0,1.60762695]
[1733890180588,1.94480369,97401.0,97400.0,1.60262695]
[1733890180762,1.95380369,97401.0,97400.0,1.60262695]
[1733890180992,1.95543818,97401.0,97400.0,1.60262695]
[1733890181214,1.95543818,97401.0,97400.0,1.56155895]
[1733890181442,1.96443818,97401.0,97400.0,1.49704695]
[1733890181643,1.95543818,97401.0,97400.0,1.49704695]
[1733890181898,2.06353818,97401.0,97400.0,1.48004695]
[1733890182133,2.07253818,97401.0,97400.0,1.44574295]
[1733890182628,2.03729226,97401.0,97400.0,1.36360695]
[1733890182877,2.13792093,97401.0,97400.0,1.35346695]
[1733890183113,2.04629226,97401.0,97400.0,1.31239895]
[1733890183315,2.04629226,97401.0,97400.0,1.23611695]
[1733890183581,2.04629226,97401.0,97400.0,1.22636695]
[1733890183776,2.04629226,97401.0,97400.0,0.0091784]
[1733890183777,2.01438681,97401.0,97400.0,0.0091784]
[1733890184193,0.45,97371.0,97370.0,8e-07]
[1733890184400,0.55532524,97371.0,97370.0,8e-07]
[1733890184606,0.58182524,97371.0,97370.0,8e-07]
[1733890184816,0.60482524,97371.0,97370.0,8e-07]
[1733890185495,0.61398976,97371.0,97370.0,8e-07]
[1733890185700,0.72609305,97371.0,97370.0,8e-07]
[1733890185902,0.65544,97352.0,97340.0,0.0462]
[1733890186109,0.76076524,97352.0,97340.0,0.0462]
[1733890187481,0.46076524,97352.0,97351.0,0.0807]